bitfinex/quotes_SOLUSD_20240902
["timestamp","ask_amount","ask_price","bid_price","bid_amount"]
[1725285782082,7.6412,130.87,130.83,20.0]
[1725285782416,49.17357063,130.85,130.81,0.8610042]
[1725285782702,49.17357063,130.83,130.81,0.8610042]
[1725285782906,56.81917063,130.8,130.75,50.0]
[1725285783202,0.70338599,130.79,130.75,50.0]
[1725285783597,8.34938599,130.79,130.74,25.6469]
[1725285783906,8.34938599,130.79,130.75,20.0]
[1725285784304,49.87695662,130.78,130.73,6.121]
[1725285784683,57.52345662,130.78,130.73,56.121]
[1725285784886,7.6472,130.77,130.73,6.121]
[1725285785104,0.70338599,130.76,130.73,6.121]
[1725285785284,8.35118599,130.76,130.73,6.121]
[1725285785484,8.35118599,130.76,130.71,69.1256]
[1725285785787,8.35048599,130.77,130.73,50.0]
[1725285785999,7.6476,130.76,130.71,69.1256]
[1725285786187,0.70338599,130.75,130.71,69.1256]
[1725285786387,56.82047063,130.78,130.73,50.0]
[1725285786701,49.17357063,130.83,130.76,50.0]
[1725285786702,0.70338599,130.82,130.76,50.0]
[1725285786899,8.34758599,130.82,130.76,50.0]
[1725285787399,0.70338599,130.82,130.78,50.0]
[1725285787597,49.17357063,130.83,130.78,50.0]
[1725285787901,49.17357063,130.85,130.78,50.0]
[1725285788106,56.81707063,130.83,130.77,25.43449]
[1725285788292,56.81707063,130.83,130.78,50.0]
[1725285788293,0.70338599,130.82,130.78,50.0]
[1725285788501,0.70338599,130.82,130.77,33.08139]
[1725285788696,0.70338599,130.82,130.78,50.0]
[1725285789792,8.34758599,130.82,130.77,75.309]
[1725285790299,7.6464,130.78,130.74,6.5372853]
[1725285790508,49.17357063,130.79,130.74,56.5372853]
[1725285791012,49.17357063,130.81,130.76,50.0]
[1725285791207,56.81867063,130.81,130.76,50.0]
[1725285791708,7.6458,130.79,130.74,56.5372853]
[1725285791902,8.34988599,130.78,130.74,56.5372853]
[1725285792106,7.646,130.79,130.74,56.5372853]
[1725285792310,7.646,130.79,130.74,6.5372853]
[1725285792311,8.34988599,130.78,130.74,6.5372853]
[1725285792494,0.70338599,130.78,130.74,6.5372853]
[1725285792804,8.34988599,130.78,130.74,0.4433853]
[1725285793011,8.34988599,130.78,130.74,20.4433853]
[1725285794230,7.647,130.77,130.74,0.4433853]
[1725285794529,7.6481,130.75,130.74,0.4433853]
[1725285795923,7.6503,130.72,130.67,70.45786929]
[1725285796101,49.87695662,130.76,130.67,50.0]
[1725285796102,8.35388599,130.71,130.67,50.0]
[1725285796415,7.6505,130.71,130.67,50.0]
[1725285796588,0.70338599,130.7,130.65,50.0]
[1725285796920,7.6512,130.7,130.65,50.0]
[1725285797210,7.6529,130.67,130.63,50.0]
[1725285797417,7.6529,130.67,130.63,50.2733615]
[1725285797594,7.653,130.67,130.63,50.2733615]
[1725285797790,7.6546,130.64,130.63,0.2733615]
[1725285798413,7.6546,130.64,130.6,50.0]
[1725285798610,49.17357063,130.65,130.6,50.0]
[1725285798797,49.17357063,130.67,130.6,50.0]
[1725285799114,7.654,130.65,130.6,50.0]
[1725285799310,7.6546,130.64,130.58,76.8017]
[1725285799620,7.6546,130.64,130.6,50.0]
[1725285799621,7.6549,130.64,130.6,50.0]
[1725285800005,7.6549,130.64,130.58,26.8017]
[1725285800006,8.35908599,130.63,130.57,0.8558094]
[1725285800301,7.6558,130.62,130.57,0.8558094]
[1725285800606,49.87695662,130.63,130.57,0.8558094]
[1725285800607,7.6546,130.64,130.59,50.0]
[1725285800793,8.35738599,130.65,130.61,50.0]
[1725285800995,7.655,130.64,130.59,50.0]
[1725285801601,7.6541,130.65,130.6,0.12549]
[1725285801803,7.6546,130.64,130.61,50.0]
[1725285802105,7.654,130.65,130.61,50.0]
[1725285802689,8.35718599,130.66,130.61,50.0]
[1725285802918,0.70338599,130.66,130.61,50.0]
[1725285803290,0.70338599,130.66,130.57,20.0013094]
[1725285803291,7.6547,130.64,130.58,50.0]
[1725285803513,0.70338599,130.63,130.59,20.0]
[1725285803900,7.6546,130.64,130.59,20.0]
[1725285804216,7.6529,130.67,130.62,50.0]
[1725285804423,49.17357063,130.69,130.64,50.0]
[1725285804424,8.35568599,130.68,130.64,50.0]
[1725285804596,56.82537063,130.69,130.64,50.0]
[1725285804916,7.6518,130.69,130.64,50.0]
[1725285805111,7.6518,130.69,130.65,0.12549]
[1725285805502,8.35458599,130.7,130.65,0.12549]
[1725285806320,0.70338599,130.7,130.66,50.0]
[1725285806500,7.65,130.72,130.67,0.12549]
[1725285806705,7.6506,130.71,130.67,0.12549]
[1725285806904,49.17357063,130.73,130.68,50.0]
[1725285807224,56.82287063,130.73,130.68,50.0]
[1725285807420,56.82287063,130.73,130.69,0.12549]
[1725285807603,56.82287063,130.73,130.68,50.0]
[1725285807801,49.17357063,130.71,130.66,50.0]
[1725285808016,49.17357063,130.71,130.67,20.12549]
[1725285808223,56.82417063,130.71,130.67,20.12549]
[1725285808838,8.35468599,130.7,130.67,20.0]
[1725285809017,8.35468599,130.7,130.65,20.12549]
[1725285809413,8.35468599,130.7,130.66,50.12549]
[1725285809641,56.82417063,130.71,130.66,50.12549]
[1725285810330,7.65,130.72,130.66,57.77869]
[1725285810535,8.35338599,130.72,130.66,57.77869]
[1725285810725,56.82297063,130.73,130.68,50.0]
[1725285810926,7.6489,130.74,130.69,0.12549]
[1725285811142,8.35278599,130.73,130.69,0.12549]
[1725285812236,8.35278599,130.73,130.68,50.0]
[1725285812442,7.6499,130.72,130.67,0.12549]
[1725285812744,0.70338599,130.71,130.67,20.12549]
[1725285812954,8.35328599,130.72,130.67,20.12549]
[1725285813655,7.6505,130.71,130.67,20.12549]
[1725285815229,7.6511,130.7,130.67,20.0]
[1725285815431,0.70338599,130.72,130.67,20.0]
[1725285815948,7.6511,130.7,130.67,20.0]
[1725285816447,7.6511,130.7,130.66,50.0]
[1725285816655,0.70338599,130.69,130.66,50.0]
[1725285816861,0.70338599,130.74,130.68,50.0]
[1725285817028,0.70338599,130.78,130.72,50.0]
[1725285817227,49.17357063,130.79,130.74,50.0]
[1725285817471,7.6459,130.79,130.74,50.0]
[1725285817629,0.70338599,130.8,130.75,0.12549]
[1725285817830,49.17357063,130.79,130.74,50.0]
[1725285818048,8.34978599,130.78,130.74,50.0]
[1725285818344,7.6457,130.8,130.75,20.0]
[1725285818548,8.34908599,130.8,130.75,20.0]
[1725285818749,8.34908599,130.8,130.74,50.0]
[1725285818750,49.17357063,130.77,130.72,50.0]
[1725285818925,0.70338599,130.76,130.7,50.0]
[1725285819239,8.35138599,130.76,130.72,50.0]
[1725285819697,49.17357063,130.77,130.72,50.0]
[1725285820455,7.6475,130.77,130.73,0.12549]
[1725285820649,49.17357063,130.79,130.74,57.6486]
[1725285820831,7.6454,130.8,130.76,50.0]
[1725285821356,8.34878599,130.8,130.76,50.0]
[1725285821652,7.6458,130.79,130.76,50.0]
[1725285822032,49.17357063,130.81,130.76,50.0]
[1725285822238,56.81827063,130.81,130.77,0.12549]
[1725285822453,49.17357063,130.81,130.77,7.89768]
[1725285822634,56.81757063,130.83,130.78,50.0]
[1725285822831,7.643,130.84,130.8,50.0]
[1725285823050,7.6435,130.83,130.79,20.12549]
[1725285823247,7.6435,130.83,130.8,50.12549]
[1725285824141,8.34748599,130.82,130.78,50.0]
[1725285824467,56.81837063,130.81,130.76,56.5027]
[1725285824662,56.81837063,130.81,130.77,20.0]
[1725285826269,7.6442,130.82,130.78,50.0]
[1725285826562,7.643,130.84,130.8,50.0]
[1725285826761,8.34638599,130.84,130.8,50.0]
[1725285827356,7.6436,130.83,130.8,50.0]
[1725285829167,56.81627063,130.85,130.82,50.0]
[1725285829460,7.643,130.84,130.81,0.12549]
[1725285830041,7.6437,130.83,130.8,50.0]
[1725285830463,7.643,130.84,130.82,50.0]
[1725285830854,7.643,130.84,130.81,0.12549]
[1725285831051,0.70338599,130.86,130.81,0.12549]
[1725285831052,7.6424,130.85,130.82,50.0]
[1725285831373,7.6431,130.84,130.8,50.0]
[1725285832565,7.6424,130.85,130.82,50.0]
[1725285832746,7.6413,130.87,130.83,0.12549]
[1725285832947,7.6413,130.87,130.84,50.0]
[1725285834147,0.70338599,130.9,130.86,50.0]
[1725285834353,49.17357063,130.91,130.86,50.0]
[1725285834658,49.17357063,130.91,130.87,0.12549]
[1725285835048,7.6397,130.9,130.87,0.12549]
[1725285835241,49.87695662,130.93,130.88,50.0]
[1725285835469,49.17357063,130.93,130.88,50.0]
[1725285835971,7.6386,130.92,130.88,50.0]
[1725285836372,56.81137063,130.93,130.89,0.25098]
[1725285836575,7.6382,130.92,130.89,0.25098]
[1725285836750,56.81137063,130.93,130.9,50.0]
[1725285836953,7.6378,130.93,130.9,50.0]
[1725285837377,7.6372,130.94,130.9,50.0]
[1725285837676,8.34058599,130.94,130.9,50.0]
[1725285837851,7.6377,130.93,130.9,50.0]
[1725285838768,8.34058599,130.94,130.9,50.0]
[1725285838974,49.17357063,130.97,130.91,0.12549]
[1725285839284,8.33968599,130.96,130.92,50.0]
[1725285839570,49.17357063,130.95,130.9,56.5849]
[1725285839766,7.6372,130.94,130.91,0.12549]
[1725285840554,7.6366,130.95,130.91,0.12549]
[1725285841950,56.81017063,130.95,130.91,0.12549]
[1725285842764,49.17357063,130.95,130.93,50.0]
[1725285842969,19.78688599,131.01,130.94,0.12549]
[1725285842970,49.17357063,130.97,130.94,0.12549]
[1725285843666,57.51005662,131.01,130.95,50.0]
[1725285843849,56.80667063,131.01,130.97,50.0]
[1725285844052,56.80667063,131.01,130.96,20.25098]
[1725285844053,8.33698599,131.0,130.96,20.25098]
[1725285844373,8.33698599,131.0,130.96,20.12549]
[1725285844580,7.6336,131.0,130.97,50.0]
[1725285844778,1.55919539,131.03,130.97,50.0]
[1725285844779,7.6324,131.02,130.99,50.0]
[1725285845691,8.33578599,131.02,130.98,0.25098]
[1725285845872,8.33578599,131.02,130.98,20.25098]
[1725285846582,7.6324,131.02,130.98,20.25098]
[1725285847768,50.02938003,131.03,131.0,50.0]
[1725285847987,0.8558094,131.03,131.0,50.0]
[1725285848284,0.8558094,131.03,131.01,0.12549]
[1725285848985,0.8558094,131.03,131.02,50.0]
[1725285849194,0.8558094,131.03,131.02,50.12549]
[1725285850959,0.8558094,131.03,131.02,50.37647]
[1725285851174,0.8558094,131.03,131.02,78.13436]
[1725285851387,0.8558094,131.03,131.02,84.45716]
[1725285851588,19.0676,131.12,131.07,57.6292]
[1725285851589,49.17357063,131.11,131.07,57.6292]
[1725285851881,49.17357063,131.11,131.07,50.0]
[1725285852088,0.70338599,131.1,131.06,0.12549]
[1725285852284,7.6291,131.08,131.06,0.12549]
[1725285852462,49.17357063,131.11,131.07,50.0]
[1725285852664,49.17357063,131.11,131.08,0.12549]
[1725285852865,56.80107063,131.11,131.08,0.12549]
[1725285853060,49.17357063,131.11,131.08,7.75419]
[1725285853284,56.79997063,131.13,131.1,50.0]
[1725285853998,7.6264,131.13,131.11,0.12549]
[1725285854168,56.79887063,131.15,131.12,50.0]
[1725285854497,7.6254,131.14,131.11,0.12549]
[1725285854696,7.6254,131.14,131.11,20.12549]
[1725285855084,7.6254,131.14,131.11,0.12549]
[1725285855273,7.6254,131.14,131.11,20.12549]
[1725285855479,56.79847063,131.15,131.12,50.0]
[1725285855781,7.6255,131.14,131.11,20.12549]
[1725285856369,49.17357063,131.15,131.12,50.0]
[1725285856693,8.4805094,131.16,131.12,50.0]
[1725285856876,49.17357063,131.15,131.12,50.0]
[1725285857271,49.17357063,131.15,131.13,0.12549]
[1725285857468,0.8558094,131.16,131.15,50.0]
[1725285857669,0.8558094,131.16,131.15,50.25098]
[1725285858091,0.8558094,131.16,131.15,50.0]
[1725285858393,0.8558094,131.16,131.15,50.25098]
[1725285858596,0.8558094,131.16,131.15,0.12549]
[1725285858801,0.8558094,131.16,131.15,50.12549]
[1725285858977,0.5260736,131.16,131.15,50.12549]
[1725285859884,0.5260736,131.16,131.15,50.25098]
[1725285860292,0.5260736,131.16,131.15,50.37647]
[1725285860505,0.5260736,131.16,131.15,70.50196]
[1725285860798,0.5260736,131.16,131.15,78.12676]
[1725285861096,0.5260736,131.16,131.15,84.57276]
[1725285861278,0.5260736,131.16,131.15,129.57276]
[1725285861600,50.01869903,131.23,131.15,129.57276]
[1725285861601,0.8451284,131.23,131.22,50.0]
[1725285861780,0.8451284,131.23,131.22,50.12549]
[1725285862189,0.8451284,131.23,131.22,70.25098]
[1725285863796,0.8451284,131.23,131.22,76.66978]
[1725285863995,0.8451284,131.23,131.22,76.92076]
[1725285864176,0.8451284,131.23,131.22,76.66978]
[1725285864801,0.8451284,131.23,131.22,76.79527]
[1725285865502,0.8451284,131.23,131.22,76.92076]
[1725285865977,0.8451284,131.23,131.22,20.12549]
[1725285866306,1.54851439,131.23,131.2,50.0]
[1725285866483,7.6207,131.22,131.2,50.0]
[1725285866686,49.17357063,131.22,131.19,50.0]
[1725285867202,7.6213,131.21,131.17,50.0]
[1725285867403,49.17357063,131.22,131.17,50.0]
[1725285867780,0.70338599,131.21,131.17,50.0]
[1725285868101,7.6223,131.2,131.18,20.0]
[1725285868699,7.6225,131.19,131.17,50.0]
[1725285869006,7.6231,131.18,131.15,56.4188]
[1725285869185,7.6231,131.18,131.16,20.0]
[1725285869911,7.6226,131.19,131.17,50.0]
[1725285870436,49.17357063,131.22,131.19,50.0]
[1725285870707,49.17357063,131.22,131.2,0.12549]
[1725285870895,7.6224,131.2,131.16,70.0]
[1725285871208,56.79597063,131.2,131.16,70.0]
[1725285871406,7.6218,131.21,131.18,50.0]
[1725285871698,7.6218,131.21,131.19,0.12549]
[1725285872091,56.79447063,131.22,131.19,0.12549]
[1725285872291,56.79447063,131.22,131.19,20.25098]
[1725285872507,49.17357063,131.22,131.19,20.12549]
[1725285872701,49.17357063,131.22,131.2,50.12549]
[1725285872702,7.6215,131.21,131.2,50.12549]
[1725285872898,56.79447063,131.22,131.2,50.25098]
[1725285873103,56.79447063,131.22,131.21,0.12549]
[1725285873989,56.79447063,131.22,131.19,20.0]
[1725285873990,7.6213,131.21,131.19,20.0]
[1725285874190,49.17357063,131.2,131.16,50.0]
[1725285874390,7.623,131.19,131.17,20.0]
[1725285875093,7.6231,131.18,131.17,20.0]
[1725285875508,7.6231,131.18,131.17,20.12549]
[1725285875722,7.6227,131.19,131.17,20.25098]
[1725285875899,7.6227,131.19,131.18,0.12549]
[1725285876698,7.6227,131.19,131.17,20.12549]
[1725285876897,7.6227,131.19,131.17,20.0]
[1725285877487,49.17357063,131.2,131.14,50.0]
[1725285877693,49.17357063,131.18,131.14,50.0]
[1725285877915,7.624,131.17,131.15,20.0]
[1725285879395,49.17357063,131.18,131.16,0.12549]
[1725285879396,56.79677063,131.18,131.16,0.12549]
[1725285879615,49.17357063,131.2,131.16,50.12549]
[1725285879927,49.17357063,131.2,131.17,20.0]
[1725285879928,7.6228,131.19,131.17,20.0]
[1725285880214,7.6227,131.19,131.17,20.0]
[1725285880515,49.17357063,131.18,131.14,50.0]
[1725285880705,49.17357063,131.18,131.15,20.0]
[1725285880904,49.17357063,131.18,131.16,50.0]
[1725285881301,56.79677063,131.18,131.16,50.0]
[1725285881505,7.6215,131.21,131.18,50.0]
[1725285881899,7.6219,131.2,131.19,0.12549]
[1725285882111,49.87695662,131.22,131.19,0.12549]
[1725285882112,7.6215,131.21,131.19,0.12549]
[1725285884420,56.79457063,131.22,131.2,50.0]
[1725285884622,56.79457063,131.22,131.21,0.12549]
[1725285885219,0.8451284,131.23,131.22,50.0]
[1725285885524,8.4653284,131.23,131.22,50.25098]
[1725285885828,8.4653284,131.23,131.22,0.25098]
[1725285886003,8.4653284,131.23,131.22,0.12549]
[1725285886204,0.8451284,131.23,131.22,50.0]
[1725285886414,0.8451284,131.23,131.22,78.12266]
[1725285886606,0.8451284,131.23,131.22,123.12266]
[1725285887424,0.8451284,131.23,131.22,70.50196]
[1725285890223,0.8451284,131.23,131.22,78.12266]
[1725285890529,0.8451284,131.23,131.22,123.12266]
[1725285893604,0.70338599,131.31,131.26,50.0]
[1725285893812,7.6167,131.29,131.27,20.25098]
[1725285894326,7.6162,131.3,131.28,50.0]
[1725285895217,7.6157,131.31,131.28,50.0]
[1725285895418,7.6161,131.3,131.29,0.12549]
[1725285895615,7.6161,131.3,131.27,20.12549]
[1725285895923,7.6161,131.3,131.28,50.12549]
[1725285896232,7.6157,131.31,131.28,50.12549]
[1725285896430,7.6161,131.3,131.28,0.12549]
[1725285896726,7.6161,131.3,131.28,50.12549]
[1725285897108,7.616,131.31,131.28,50.12549]
[1725285897308,7.616,131.31,131.29,0.12549]
[1725285897907,7.6161,131.3,131.28,0.12549]
[1725285898218,7.6167,131.29,131.28,0.12549]
[1725285898530,7.6167,131.29,131.27,20.0]
[1725285898919,7.6167,131.29,130.82,23.83681814]
[1725285898920,49.17357063,131.28,131.22,50.0]
[1725285899219,49.17357063,131.25,131.22,50.0]
[1725285899411,56.79257063,131.25,131.22,50.0]
[1725285899607,56.79177063,131.27,131.24,50.0]
[1725285900414,7.6173,131.28,131.26,50.0]
[1725285900623,7.6168,131.29,131.27,0.12549]
[1725285900817,7.6168,131.29,131.27,0.25098]
[1725285901040,7.6173,131.28,131.27,0.25098]
[1725285901224,7.6173,131.28,131.27,0.12549]
[1725285901606,7.6162,131.3,131.27,0.25098]
[1725285902008,7.6162,131.3,131.28,50.0]
[1725285902535,7.6156,131.31,131.29,0.12549]
[1725285902738,7.6156,131.31,131.29,0.25098]
[1725285903232,7.6156,131.31,131.3,50.0]
[1725285903532,7.6156,131.31,131.3,50.12549]
[1725285904112,7.6156,131.31,131.3,50.25098]
[1725285904313,7.615,131.32,131.3,50.25098]
[1725285904637,49.17357063,131.33,131.3,50.25098]
[1725285904638,7.6132,131.35,131.33,50.0]
[1725285904814,7.6132,131.35,131.34,0.12549]
[1725285905015,6.00397648,131.35,131.34,0.12549]
[1725285905216,0.8451284,131.36,131.35,50.0]
[1725285905436,0.8451284,131.36,131.35,70.25098]
[1725285907140,0.8451284,131.36,131.35,95.50196]
[1725285907527,0.8451284,131.36,131.35,123.11516]
[1725285907726,0.8451284,131.36,131.35,70.50196]
[1725285908422,0.8451284,131.36,131.35,78.11516]
[1725285908637,0.8451284,131.36,131.35,123.11516]
[1725285909040,0.8451284,131.36,131.35,78.11516]
[1725285910037,0.8451284,131.36,131.35,70.12549]
[1725285910536,0.8451284,131.36,131.31,50.0]
[1725285910722,7.6144,131.33,131.29,79.5679]
[1725285910925,49.17357063,131.33,131.27,50.0]
[1725285911122,56.78927063,131.31,131.27,50.0]
[1725285911323,7.6161,131.3,131.27,50.0]
[1725285912224,49.17357063,131.33,131.32,57.6149]
[1725285912521,49.17357063,131.33,131.25,25.5082]
[1725285912522,0.8451284,131.36,131.35,6.57989]
[1725285912846,0.8451284,131.36,131.35,79.56956]
[1725285922965,0.8451284,131.36,131.35,20.0]
[1725285923140,0.8451284,131.36,131.34,50.0]
[1725285923333,57.63179903,131.36,131.32,50.0]
[1725285923739,57.63179903,131.36,131.32,57.6149]
[1725285924360,7.6155,131.31,131.3,50.0]
[1725285924562,7.6163,131.3,131.28,50.0]
[1725285925056,7.6168,131.29,131.26,50.0]
[1725285925256,49.17357063,131.28,131.26,50.0]
[1725285925465,7.6178,131.27,131.26,50.0]
[1725285926059,56.79097063,131.28,131.26,50.0]
[1725285926841,0.70338599,131.27,131.23,50.0]
[1725285927041,49.17357063,131.26,131.23,50.0]
[1725285928368,7.6191,131.25,131.23,50.0]
[1725285928537,56.79207063,131.26,131.23,50.0]
[1725285928735,0.70338599,131.29,131.26,50.0]
[1725285928938,7.6178,131.27,131.24,0.25098]
[1725285929161,7.6178,131.27,131.24,20.12549]
[1725285929358,7.6178,131.27,131.24,20.0]
[1725285929864,7.6173,131.28,131.25,50.12549]
[1725285930063,7.6168,131.29,131.25,50.37647]
[1725285930740,49.17357063,131.3,131.25,57.99497]
[1725285930941,56.79007063,131.3,131.27,50.0]
[1725285931259,7.6167,131.29,131.26,20.0]
[1725285931468,7.6173,131.28,131.27,0.12549]
[1725285932562,7.6173,131.28,131.23,19.0497]
[1725285932563,49.17357063,131.28,131.21,57.6213]
[1725285932865,0.70338599,131.29,131.19,50.0]
[1725285932866,7.6218,131.21,131.19,50.0]
[1725285933054,49.17357063,131.22,131.19,50.0]
[1725285933261,7.6206,131.23,131.19,50.0]
[1725285933459,7.6197,131.24,131.21,50.0]
[1725285933647,56.79257063,131.25,131.21,50.0]
[1725285933847,7.619,131.25,131.21,50.0]
[1725285934161,49.17357063,131.27,131.23,50.0]
[1725285934466,49.17357063,131.27,131.24,20.96260419]
[1725285934764,56.79167063,131.27,131.24,20.96260419]
[1725285934970,56.79167063,131.27,131.25,0.12549]
[1725285935850,49.87695662,131.29,131.25,50.37647]
[1725285936045,64.85457063,131.32,131.27,50.0]
[1725285936046,7.6166,131.3,131.27,50.0]
[1725285936244,57.49265662,131.31,131.27,50.0]
[1725285936451,56.78927063,131.31,131.28,0.12549]
[1725285937360,8.31838599,131.32,131.28,20.25098]
[1725285937561,7.6157,131.31,131.28,20.25098]
[1725285938166,7.6163,131.3,131.28,20.12549]
[1725285938368,56.78927063,131.31,131.28,20.12549]
[1725285938549,0.70338599,131.3,131.28,20.0]
[1725285938868,7.6161,131.3,131.28,20.0]
[1725285939057,7.6161,131.3,131.27,50.12549]
[1725285939362,7.6161,131.3,131.28,20.12549]
[1725285939566,49.87695662,131.29,131.25,50.0]
[1725285939794,49.87695662,131.29,131.21,22.7145]
[1725285939795,7.6191,131.25,131.23,50.0]
[1725285941072,49.87695662,131.29,131.26,50.0]
[1725285941275,56.79067063,131.29,131.27,0.12549]
[1725285941763,56.79067063,131.29,131.25,0.12549]
[1725285941764,8.32068599,131.28,131.25,0.12549]
[1725285942073,56.79037063,131.29,131.26,50.0]
[1725285942375,7.6168,131.29,131.27,0.12549]
[1725285943581,0.70338599,131.28,131.24,50.0]
[1725285943784,0.70338599,131.28,131.25,20.12549]
[1725285944257,49.17357063,131.29,131.25,20.12549]
[1725285944967,7.6176,131.28,131.25,20.12549]
[1725285947061,8.32098599,131.28,131.25,20.12549]
[1725285948481,7.6184,131.26,131.25,20.0]
[1725285948684,7.6184,131.26,131.24,20.0]
[1725285948868,8.32178599,131.26,131.24,20.0]
[1725285949062,7.619,131.25,131.21,14.1497]
[1725285949261,7.622,131.2,131.18,50.0]
[1725285949474,7.622,131.2,131.17,6.0658]
[1725285950095,7.622,131.2,131.16,57.6238]
[1725285950765,7.6226,131.19,131.16,50.0]
[1725285951259,7.6237,131.17,131.14,69.0624]
[1725285951478,7.6237,131.17,131.14,50.0]
[1725285952367,56.79657063,131.19,131.16,50.0]
[1725285952861,15.901,131.23,131.18,50.0]
[1725285952862,7.6209,131.22,131.18,50.0]
[1725285953384,7.6209,131.22,131.19,0.12549]
[1725285953589,7.6209,131.22,131.19,0.25098]
[1725285954480,49.17357063,131.23,131.19,27.87328]
[1725285954812,49.17357063,131.23,131.19,20.12549]
[1725285954813,7.6208,131.22,131.19,20.12549]
[1725285954962,57.49845662,131.21,131.19,20.0]
[1725285955277,7.6222,131.2,131.16,76.6839]
[1725285955476,8.32558599,131.2,131.17,20.0]
[1725285955877,0.70338599,131.2,131.17,20.0]
[1725285956076,49.17357063,131.19,131.15,20.12549]
[1725285956288,49.17357063,131.19,131.16,50.0]
[1725285956586,56.79537063,131.21,131.17,20.0]
[1725285956784,7.6219,131.2,131.17,20.0]
[1725285957673,56.79527063,131.21,131.18,50.12549]
[1725285958089,7.6217,131.21,131.18,50.12549]
[1725285958475,49.87695662,131.23,131.18,50.12549]
[1725285958682,49.17357063,131.23,131.19,20.12549]
[1725285959087,49.87695662,131.25,131.2,0.12549]
[1725285959288,7.6203,131.23,131.2,50.12549]
[1725285959687,7.6208,131.22,131.2,0.12549]
[1725285960106,7.6214,131.21,131.19,20.0]
[1725285960306,49.17357063,131.23,131.19,20.0]
[1725285960481,7.6236,131.17,131.16,50.0]
[1725285960686,49.17357063,131.21,131.11,16.3125]
[1725285960687,7.6233,131.18,131.14,50.0]
[1725285960881,56.79617063,131.19,131.16,50.0]
[1725285961292,56.79627063,131.19,131.14,57.6252]
[1725285961504,56.79627063,131.19,131.16,50.0]
[1725285962810,7.6227,131.19,131.17,0.12549]
[1725285963015,7.6227,131.19,131.15,0.12549]
[1725285963016,0.70338599,131.18,131.15,0.12549]
[1725285963191,0.70338599,131.18,131.15,20.0]
[1725285963393,7.624,131.17,131.15,20.0]
[1725285964588,7.6242,131.16,131.15,20.0]
[1725285964788,0.70338599,131.18,131.15,20.12549]
[1725285965007,49.17357063,131.21,131.18,50.0]
[1725285965188,7.6214,131.21,131.19,0.12549]
[1725285965388,7.6209,131.22,131.19,0.12549]
[1725285965594,7.6209,131.22,131.19,0.25098]
[1725285965788,7.6209,131.22,131.17,7.74869]
[1725285965789,49.87695662,131.21,131.16,50.0]
[1725285966016,7.6225,131.19,131.17,20.12549]
[1725285966313,7.6225,131.19,131.13,6.0658]
[1725285966314,7.6248,131.15,131.13,6.0658]
[1725285966617,7.6254,131.14,131.1,56.147]
[1725285967294,7.626,131.13,131.1,56.147]
[1725285967497,7.626,131.13,131.08,57.6287]
[1725285967717,7.6282,131.1,131.08,50.0]
[1725285967902,8.33058599,131.11,131.08,50.0]
[1725285968610,8.33058599,131.11,131.0,38.1674]
[1725285968611,49.87695662,131.1,131.02,50.0]
[1725285968910,7.6311,131.05,131.01,6.3917]
[1725285969109,7.6311,131.05,131.02,50.0]
[1725285969283,8.33448599,131.05,131.02,50.0]
[1725285970021,0.70338599,131.05,131.02,50.0]
[1725285970394,7.6301,131.06,131.02,50.0]
[1725285970612,49.17357063,131.11,131.04,50.0]
[1725285970820,0.70338599,131.1,131.06,50.0]
[1725285970988,57.50415662,131.11,131.06,50.0]
[1725285971187,49.17357063,131.13,131.06,50.0]
[1725285971401,8.33038599,131.12,131.06,57.6295]